[Event "*** Titled Tuesday Blitz"]
[Site "Chess.com"]
[Date "2021.04.06"]
[Round "1"]
[White "fyall777"]
[Black "Volodar_Murzin"]
[Result "1-0"]
[WhiteElo "2430"]
[BlackElo "2759"]
[TimeControl "180+1"]
[EndTime "10:05:39 PDT"]
[Termination "fyall777 won on time"]

1. e4 {[%clk 0:03:00.9]} 1... c5 {[%clk 0:02:58.4]} 2. Nf3 {[%clk 0:03:01.2]}
2... d6 {[%clk 0:02:57.5]} 3. Nc3 {[%clk 0:03:01.8]} 3... Nf6 {[%clk 0:02:56.1]}
4. g3 {[%clk 0:03:01.7]} 4... Nc6 {[%clk 0:02:53.9]} 5. Bg2 {[%clk 0:03:01.9]}
5... g6 {[%clk 0:02:51]} 6. O-O {[%clk 0:03:01.9]} 6... Bg7 {[%clk 0:02:50.3]}
7. d3 {[%clk 0:03:02.3]} 7... O-O {[%clk 0:02:48.8]} 8. h3 {[%clk 0:03:02.6]}
8... a6 {[%clk 0:02:45.1]} 9. Nh2 {[%clk 0:03:01.7]} 9... Nd4 {[%clk 0:02:31.8]}
10. Ne2 {[%clk 0:02:54]} 10... Nd7 {[%clk 0:02:29]} 11. c3 {[%clk 0:02:53]}
11... Nxe2+ {[%clk 0:02:28.1]} 12. Qxe2 {[%clk 0:02:53.3]} 12... Rb8 {[%clk
0:02:27.1]} 13. f4 {[%clk 0:02:51.5]} 13... b5 {[%clk 0:02:25.7]} 14. Bd2 {[%clk
0:02:47.1]} 14... a5 {[%clk 0:02:22.4]} 15. h4 {[%clk 0:02:40.6]} 15... b4
{[%clk 0:02:18.5]} 16. h5 {[%clk 0:02:40.5]} 16... Ba6 {[%clk 0:02:17.5]} 17.
hxg6 {[%clk 0:02:35.6]} 17... hxg6 {[%clk 0:02:15.4]} 18. Ng4 {[%clk 0:02:31.5]}
18... bxc3 {[%clk 0:01:58.4]} 19. Bxc3 {[%clk 0:02:30.2]} 19... Bxc3 {[%clk
0:01:48.4]} 20. bxc3 {[%clk 0:02:30]} 20... Kg7 {[%clk 0:01:48.8]} 21. f5 {[%clk
0:02:28.4]} 21... Nf6 {[%clk 0:01:40.7]} 22. c4 {[%clk 0:02:25.1]} 22... Rh8
{[%clk 0:01:34.8]} 23. Rab1 {[%clk 0:02:21.9]} 23... Qd7 {[%clk 0:01:14.9]} 24.
Ne3 {[%clk 0:02:20.8]} 24... a4 {[%clk 0:00:52.7]} 25. Qd2 {[%clk 0:02:13.3]}
25... e5 {[%clk 0:00:30.4]} 26. g4 {[%clk 0:01:59.1]} 26... Rbf8 {[%clk
0:00:09]} 27. Kf2 {[%clk 0:01:42.6]} 27... Re8 {[%clk 0:00:03]} 28. Rh1 {[%clk
0:01:41.8]} 28... g5 {[%clk 0:00:03.1]} 29. Nd5 {[%clk 0:01:39.3]} 29... Nxd5
{[%clk 0:00:01.9]} 30. Qxg5+ {[%clk 0:01:38.4]} 1-0

[Event "*** Titled Tuesday Blitz"]
[Site "Chess.com"]
[Date "2021.04.06"]
[Round "1"]
[White "DonPreuss"]
[Black "chescomhuynya"]
[Result "0-1"]
[WhiteElo "2250"]
[BlackElo "2568"]
[TimeControl "180+1"]
[EndTime "10:05:39 PDT"]
[Termination "chescomhuynya won by resignation"]

1. d4 {[%clk 0:02:56.4]} 1... Nf6 {[%clk 0:02:59.6]} 2. Nc3 {[%clk 0:02:56.2]}
2... d5 {[%clk 0:02:59.4]} 3. e4 {[%clk 0:02:56.5]} 3... dxe4 {[%clk 0:02:59.4]}
4. f3 {[%clk 0:02:56.8]} 4... exf3 {[%clk 0:02:58.2]} 5. Nxf3 {[%clk 0:02:56.9]}
5... g6 {[%clk 0:02:56.8]} 6. Bd3 {[%clk 0:02:56.1]} 6... Bg7 {[%clk 0:02:56.9]}
7. O-O {[%clk 0:02:56.6]} 7... O-O {[%clk 0:02:57.5]} 8. Qe1 {[%clk 0:02:56.7]}
8... Nc6 {[%clk 0:02:54.9]} 9. Qh4 {[%clk 0:02:55.8]} 9... Bg4 {[%clk
0:02:50.2]} 10. Ne2 {[%clk 0:02:54.7]} 10... Nb4 {[%clk 0:02:40.3]} 11. Bh6
{[%clk 0:02:52.1]} 11... Nxd3 {[%clk 0:02:38.2]} 12. cxd3 {[%clk 0:02:51.7]}
12... Bxf3 {[%clk 0:02:26.3]} 13. Rxf3 {[%clk 0:02:50.5]} 13... Qd5 {[%clk
0:02:15.9]} 14. Nf4 {[%clk 0:02:26.3]} 14... Qxd4+ {[%clk 0:02:15.3]} 15. Kh1
{[%clk 0:02:26.5]} 15... Rad8 {[%clk 0:02:03.6]} 16. Raf1 {[%clk 0:02:12]} 16...
e5 {[%clk 0:01:53.5]} 17. Bxg7 {[%clk 0:01:56.4]} 17... Kxg7 {[%clk 0:01:54.4]}
18. Qg5 {[%clk 0:00:40.1]} 18... h6 {[%clk 0:01:29]} 19. Qh4 {[%clk 0:00:24.5]}
19... Rd6 {[%clk 0:01:19.3]} 20. Qg3 {[%clk 0:00:08.4]} 20... exf4 {[%clk
0:01:19]} 21. Rxf4 {[%clk 0:00:08.6]} 21... Qxb2 {[%clk 0:01:19.1]} 22. h4
{[%clk 0:00:07.6]} 22... Nh5 {[%clk 0:01:18.7]} 0-1

[Event "*** Titled Tuesday Blitz"]
[Site "Chess.com"]
[Date "2021.04.06"]
[Round "1"]
[White "scarabee43"]
[Black "GMJustin"]
[Result "1-0"]
[WhiteElo "2602"]
[BlackElo "2294"]
[TimeControl "180+1"]
[EndTime "10:05:50 PDT"]
[Termination "scarabee43 won on time"]

1. d4 {[%clk 0:03:00.9]} 1... d5 {[%clk 0:02:56]} 2. c4 {[%clk 0:03:01.5]} 2...
c6 {[%clk 0:02:55.7]} 3. Nc3 {[%clk 0:03:02]} 3... e5 {[%clk 0:02:48.4]} 4. cxd5
{[%clk 0:02:58.7]} 4... cxd5 {[%clk 0:02:45.3]} 5. dxe5 {[%clk 0:02:59.2]} 5...
d4 {[%clk 0:02:43.6]} 6. Ne4 {[%clk 0:02:59.3]} 6... Qa5+ {[%clk 0:02:42]} 7.
Nd2 {[%clk 0:02:57.3]} 7... Nc6 {[%clk 0:02:24.9]} 8. Nf3 {[%clk 0:02:56]} 8...
Bg4 {[%clk 0:02:22.5]} 9. g3 {[%clk 0:02:52.8]} 9... Bxf3 {[%clk 0:02:02.9]} 10.
exf3 {[%clk 0:02:47.6]} 10... Qxe5+ {[%clk 0:02:00.2]} 11. Qe2 {[%clk
0:02:43.1]} 11... Nf6 {[%clk 0:01:58.6]} 12. Qxe5+ {[%clk 0:02:37.7]} 12... Nxe5
{[%clk 0:01:58.5]} 13. f4 {[%clk 0:02:38]} 13... Nc6 {[%clk 0:01:55.9]} 14. Bg2
{[%clk 0:02:33.6]} 14... Bc5 {[%clk 0:01:46.3]} 15. a3 {[%clk 0:02:24.7]} 15...
a5 {[%clk 0:01:36.5]} 16. Ke2 {[%clk 0:02:13.9]} 16... O-O {[%clk 0:01:30]} 17.
Kd3 {[%clk 0:02:09.3]} 17... a4 {[%clk 0:01:10.7]} 18. Re1 {[%clk 0:01:53.1]}
18... Rfd8 {[%clk 0:01:00.2]} 19. Nc4 {[%clk 0:01:47.6]} 19... Rac8 {[%clk
0:00:55.7]} 20. Bh3 {[%clk 0:01:34.3]} 20... Rc7 {[%clk 0:00:51.9]} 21. Bd2
{[%clk 0:01:34.8]} 21... b5 {[%clk 0:00:33]} 22. Ne5 {[%clk 0:01:32.4]} 22...
Bb6 {[%clk 0:00:12.7]} 23. Rac1 {[%clk 0:01:28.4]} 23... Na5 {[%clk 0:00:11.3]}
24. Rxc7 {[%clk 0:01:22.2]} 24... Bxc7 {[%clk 0:00:12.2]} 25. Rc1 {[%clk
0:01:19.7]} 25... Bb6 {[%clk 0:00:02.9]} 26. Bxa5 {[%clk 0:01:17.2]} 26... Bxa5
{[%clk 0:00:03.8]} 27. Nc6 {[%clk 0:01:17.5]} 1-0

[Event "*** Titled Tuesday Blitz"]
[Site "Chess.com"]
[Date "2021.04.06"]
[Round "1"]
[White "Izoria123"]
[Black "The_Machine04"]
[Result "1/2-1/2"]
[WhiteElo "2804"]
[BlackElo "2437"]
[TimeControl "180+1"]
[EndTime "10:05:53 PDT"]
[Termination "Game drawn by repetition"]

1. Nf3 {[%clk 0:03:00.1]} 1... d6 {[%clk 0:03:00.9]} 2. d4 {[%clk 0:02:56.7]}
2... Nf6 {[%clk 0:03:01.6]} 3. c4 {[%clk 0:02:55.2]} 3... g6 {[%clk 0:03:02]} 4.
g3 {[%clk 0:02:54.1]} 4... Bg7 {[%clk 0:03:01.3]} 5. Bg2 {[%clk 0:02:54.4]} 5...
O-O {[%clk 0:03:02.2]} 6. O-O {[%clk 0:02:54.6]} 6... Nbd7 {[%clk 0:03:03.1]} 7.
Nc3 {[%clk 0:02:54]} 7... c6 {[%clk 0:03:04]} 8. e4 {[%clk 0:02:52]} 8... Qc7
{[%clk 0:03:03.3]} 9. h3 {[%clk 0:02:51.9]} 9... e5 {[%clk 0:03:03.7]} 10. Be3
{[%clk 0:02:51.8]} 10... a6 {[%clk 0:03:03.9]} 11. Re1 {[%clk 0:02:50.7]} 11...
Re8 {[%clk 0:03:04]} 12. Qc2 {[%clk 0:02:49]} 12... b5 {[%clk 0:03:04]} 13. cxb5
{[%clk 0:02:45.3]} 13... cxb5 {[%clk 0:03:04.9]} 14. a3 {[%clk 0:02:44.6]} 14...
Bb7 {[%clk 0:03:04.6]} 15. d5 {[%clk 0:02:38.2]} 15... Rac8 {[%clk 0:03:02.8]}
16. Rac1 {[%clk 0:02:35.5]} 16... Nb6 {[%clk 0:02:57.9]} 17. Nd2 {[%clk
0:02:34.1]} 17... Nc4 {[%clk 0:02:56.7]} 18. Nxc4 {[%clk 0:02:33.1]} 18... Qxc4
{[%clk 0:02:57.6]} 19. Bf1 {[%clk 0:02:29.8]} 19... Qc7 {[%clk 0:02:55.2]} 20.
Qb3 {[%clk 0:02:27.1]} 20... Qd7 {[%clk 0:02:54.9]} 21. a4 {[%clk 0:02:24.9]}
21... bxa4 {[%clk 0:02:46.8]} 22. Nxa4 {[%clk 0:02:24.7]} 22... Rxc1 {[%clk
0:02:44.8]} 23. Bxc1 {[%clk 0:02:24.3]} 23... Rb8 {[%clk 0:02:38.5]} 24. Be3
{[%clk 0:02:21.8]} 24... Nxe4 {[%clk 0:02:13.3]} 25. Ba7 {[%clk 0:02:20.3]}
25... Ra8 {[%clk 0:02:13.2]} 26. Nb6 {[%clk 0:02:17.3]} 26... Nc5 {[%clk
0:02:12]} 27. Qa3 {[%clk 0:02:04.2]} 27... Qd8 {[%clk 0:01:59.7]} 28. Nxa8
{[%clk 0:02:03.5]} 28... Qxa8 {[%clk 0:02:00.6]} 29. Bxc5 {[%clk 0:02:00.9]}
29... dxc5 {[%clk 0:02:01.5]} 30. d6 {[%clk 0:01:56.4]} 30... Qc8 {[%clk
0:01:58.6]} 31. Qa4 {[%clk 0:01:42.6]} 31... Qe6 {[%clk 0:01:43.2]} 32. Rd1
{[%clk 0:01:35.1]} 32... Qf6 {[%clk 0:01:31.8]} 33. Qe8+ {[%clk 0:01:04.6]}
33... Bf8 {[%clk 0:01:28.9]} 34. Bg2 {[%clk 0:01:04.8]} 34... Bxg2 {[%clk
0:01:18.4]} 35. Kxg2 {[%clk 0:01:04.3]} 35... e4 {[%clk 0:01:19.3]} 36. d7
{[%clk 0:00:55.3]} 36... Qf3+ {[%clk 0:01:17.1]} 37. Kg1 {[%clk 0:00:46.5]}
37... Qxd1+ {[%clk 0:01:16.8]} 38. Kh2 {[%clk 0:00:47.2]} 38... Qf3 {[%clk
0:01:01.8]} 39. d8=Q {[%clk 0:00:45.1]} 39... Qxf2+ {[%clk 0:01:00.1]} 40. Kh1
{[%clk 0:00:45.4]} 40... Qf1+ {[%clk 0:01:00.6]} 41. Kh2 {[%clk 0:00:46.2]}
41... Qf2+ {[%clk 0:01:01.5]} 42. Kh1 {[%clk 0:00:46.7]} 42... Qf1+ {[%clk
0:01:02.4]} 43. Kh2 {[%clk 0:00:47.2]} 43... Qf2+ {[%clk 0:01:03.3]} 1/2-1/2

[Event "*** Titled Tuesday Blitz"]
[Site "Chess.com"]
[Date "2021.04.06"]
[Round "1"]
[White "BAS8892"]
[Black "xozr"]
[Result "1-0"]
[WhiteElo "2659"]
[BlackElo "2351"]
[TimeControl "180+1"]
[EndTime "10:05:54 PDT"]
[Termination "BAS8892 won by resignation"]

1. d4 {[%clk 0:03:00.9]} 1... Nf6 {[%clk 0:02:59.6]} 2. Bf4 {[%clk 0:02:59.5]}
2... c5 {[%clk 0:03:00.5]} 3. d5 {[%clk 0:02:59.2]} 3... d6 {[%clk 0:03:00.2]}
4. Nc3 {[%clk 0:02:59.3]} 4... g6 {[%clk 0:03:00.4]} 5. e4 {[%clk 0:02:59.3]}
5... Bg7 {[%clk 0:03:00.2]} 6. Qd2 {[%clk 0:02:59.9]} 6... O-O {[%clk
0:03:00.9]} 7. h4 {[%clk 0:02:59.3]} 7... Re8 {[%clk 0:02:59.5]} 8. Be2 {[%clk
0:02:58.3]} 8... b5 {[%clk 0:02:52.1]} 9. Bxb5 {[%clk 0:02:56.2]} 9... Bd7
{[%clk 0:02:51.6]} 10. Be2 {[%clk 0:02:55.3]} 10... Qb6 {[%clk 0:02:50.8]} 11.
Rb1 {[%clk 0:02:53.3]} 11... Qb4 {[%clk 0:02:48.6]} 12. a3 {[%clk 0:02:51.3]}
12... Qd4 {[%clk 0:02:45.6]} 13. Nf3 {[%clk 0:02:50.8]} 13... Nxe4 {[%clk
0:02:40.1]} 14. Qxd4 {[%clk 0:02:34.6]} 14... cxd4 {[%clk 0:02:38.2]} 15. Nxe4
{[%clk 0:02:33.9]} 15... Bf5 {[%clk 0:02:37.1]} 16. Bd3 {[%clk 0:02:33.3]} 16...
Nd7 {[%clk 0:02:33.7]} 17. Ned2 {[%clk 0:02:29.6]} 17... Bxd3 {[%clk 0:02:32.2]}
18. cxd3 {[%clk 0:02:29.3]} 18... Nc5 {[%clk 0:02:33.1]} 19. O-O {[%clk
0:02:13.5]} 19... Nxd3 {[%clk 0:02:32.5]} 20. Bg3 {[%clk 0:02:13.6]} 20... Rab8
{[%clk 0:02:27.8]} 21. b4 {[%clk 0:02:12.9]} 21... Rb5 {[%clk 0:02:27.6]} 22.
Rfd1 {[%clk 0:02:10]} 22... Rxd5 {[%clk 0:02:27.2]} 23. Nb3 {[%clk 0:02:10]}
23... Ne5 {[%clk 0:02:22.9]} 24. Nfxd4 {[%clk 0:02:09.2]} 24... Rc8 {[%clk
0:02:19.6]} 25. Ne2 {[%clk 0:02:03.5]} 25... Rxd1+ {[%clk 0:02:15.2]} 26. Rxd1
{[%clk 0:02:02.9]} 26... Rc2 {[%clk 0:02:14.2]} 27. Kf1 {[%clk 0:01:59.4]} 27...
Rb2 {[%clk 0:02:10.6]} 28. Nbd4 {[%clk 0:01:57.7]} 28... Ra2 {[%clk 0:02:08.8]}
29. Bxe5 {[%clk 0:01:52.3]} 29... Bxe5 {[%clk 0:02:08.5]} 30. Nc6 {[%clk
0:01:52.3]} 30... Rxa3 {[%clk 0:02:08.2]} 31. Nxe7+ {[%clk 0:01:48.9]} 31... Kg7
{[%clk 0:02:07.2]} 32. Nc6 {[%clk 0:01:48.9]} 32... Kf6 {[%clk 0:01:57.5]} 33.
f4 {[%clk 0:01:48.2]} 33... Bc3 {[%clk 0:01:46.7]} 34. Rxd6+ {[%clk 0:01:47.3]}
34... Kf5 {[%clk 0:01:46.6]} 35. Rd3 {[%clk 0:01:42]} 35... Ra1+ {[%clk
0:01:45.6]} 36. Kf2 {[%clk 0:01:41.9]} 36... Bf6 {[%clk 0:01:43.9]} 37. g3
{[%clk 0:01:34.3]} 37... Rb1 {[%clk 0:01:42.4]} 38. Rd7 {[%clk 0:01:22.9]} 38...
a6 {[%clk 0:01:27.9]} 39. Rxf7 {[%clk 0:01:21.5]} 39... Rb2 {[%clk 0:01:26.2]}
40. Nd4+ {[%clk 0:01:17.5]} 40... Kg4 {[%clk 0:01:25.8]} 41. Rxf6 {[%clk
0:01:17.4]} 41... Rxb4 {[%clk 0:01:17]} 42. Rxa6 {[%clk 0:01:17]} 42... Rb2
{[%clk 0:01:16]} 43. Ra7 {[%clk 0:01:16.3]} 43... h5 {[%clk 0:01:11.6]} 44. Rg7
{[%clk 0:01:16.1]} 44... Kh3 {[%clk 0:01:09.4]} 45. Rxg6 {[%clk 0:01:16]} 45...
Kh2 {[%clk 0:01:05.4]} 46. Rg5 {[%clk 0:01:16]} 46... Kh1 {[%clk 0:00:58.1]} 47.
Rxh5 {[%clk 0:01:15.8]} 1-0

[Event "*** Titled Tuesday Blitz"]
[Site "Chess.com"]
[Date "2021.04.06"]
[Round "1"]
[White "K_A_S_T_O_R"]
[Black "korkmaz16"]
[Result "1-0"]
[WhiteElo "2809"]
[BlackElo "2429"]
[TimeControl "180+1"]
[EndTime "10:05:56 PDT"]
[Termination "K_A_S_T_O_R won by checkmate"]

1. e4 {[%clk 0:03:00.5]} 1... e6 {[%clk 0:02:57.8]} 2. d4 {[%clk 0:02:59.9]}
2... d5 {[%clk 0:02:57.3]} 3. Nc3 {[%clk 0:03:00.4]} 3... Nf6 {[%clk 0:02:53.9]}
4. e5 {[%clk 0:03:00.5]} 4... Nfd7 {[%clk 0:02:54.1]} 5. Nce2 {[%clk 0:03:00.9]}
5... c5 {[%clk 0:02:54.3]} 6. c3 {[%clk 0:03:01.2]} 6... Nc6 {[%clk 0:02:54.4]}
7. f4 {[%clk 0:03:00.4]} 7... Qb6 {[%clk 0:02:54.8]} 8. a3 {[%clk 0:03:00.1]}
8... f6 {[%clk 0:02:49.4]} 9. Nf3 {[%clk 0:02:59.5]} 9... Be7 {[%clk 0:02:48.8]}
10. h4 {[%clk 0:02:29.1]} 10... O-O {[%clk 0:02:46.9]} 11. b4 {[%clk 0:02:25.3]}
11... cxd4 {[%clk 0:02:46.1]} 12. cxd4 {[%clk 0:02:25.7]} 12... fxe5 {[%clk
0:02:45.4]} 13. fxe5 {[%clk 0:02:25.7]} 13... a5 {[%clk 0:02:28.4]} 14. b5
{[%clk 0:02:25]} 14... Ncxe5 {[%clk 0:02:21.4]} 15. dxe5 {[%clk 0:02:23.7]}
15... Rxf3 {[%clk 0:02:12.7]} 16. gxf3 {[%clk 0:02:23]} 16... Nxe5 {[%clk
0:02:12.7]} 17. Qb3 {[%clk 0:02:10.7]} 17... a4 {[%clk 0:02:03.3]} 18. Qe3
{[%clk 0:02:09.3]} 18... Qxb5 {[%clk 0:01:05.2]} 19. Nd4 {[%clk 0:01:55.7]}
19... Qa5+ {[%clk 0:01:01.1]} 20. Bd2 {[%clk 0:01:54.8]} 20... Qc7 {[%clk
0:01:00.5]} 21. Rc1 {[%clk 0:01:52.9]} 21... Qb8 {[%clk 0:01:00.3]} 22. Rg1
{[%clk 0:01:47]} 22... Bxh4+ {[%clk 0:00:58.4]} 23. Kd1 {[%clk 0:01:46.7]} 23...
Bf6 {[%clk 0:00:50.5]} 24. f4 {[%clk 0:01:44.1]} 24... Ng6 {[%clk 0:00:34.3]}
25. Nxe6 {[%clk 0:01:42.7]} 25... Bxe6 {[%clk 0:00:27.1]} 26. Qxe6+ {[%clk
0:01:40.6]} 26... Kh8 {[%clk 0:00:27.3]} 27. Rxg6 {[%clk 0:01:40.1]} 27... hxg6
{[%clk 0:00:23.8]} 28. Bd3 {[%clk 0:01:40.2]} 28... Qa7 {[%clk 0:00:19.9]} 29.
Ke2 {[%clk 0:01:37.1]} 29... Bh4 {[%clk 0:00:08.4]} 30. Rc8+ {[%clk 0:01:29.5]}
30... Rxc8 {[%clk 0:00:08.1]} 31. Qxc8+ {[%clk 0:01:30.4]} 31... Kh7 {[%clk
0:00:09]} 32. Qg4 {[%clk 0:01:28.7]} 32... Qf2+ {[%clk 0:00:08.8]} 33. Kd1
{[%clk 0:01:28.5]} 33... Bg3 {[%clk 0:00:05.4]} 34. Qxg6+ {[%clk 0:01:27.7]}
34... Kg8 {[%clk 0:00:05.8]} 35. Qe8# {[%clk 0:01:28.2]} 1-0

[Event "*** Titled Tuesday Blitz"]
[Site "Chess.com"]
[Date "2021.04.06"]
[Round "1"]
[White "Airquake"]
[Black "Forantes"]
[Result "1-0"]
[WhiteElo "2662"]
[BlackElo "2356"]
[TimeControl "180+1"]
[EndTime "10:05:56 PDT"]
[Termination "Airquake won on time"]

1. e4 {[%clk 0:03:00.9]} 1... c5 {[%clk 0:02:59]} 2. Nf3 {[%clk 0:03:01.1]} 2...
Nc6 {[%clk 0:02:58.4]} 3. Bb5 {[%clk 0:03:00.9]} 3... a6 {[%clk 0:02:49.6]} 4.
Bxc6 {[%clk 0:03:00.4]} 4... dxc6 {[%clk 0:02:48.9]} 5. O-O {[%clk 0:03:00.2]}
5... Qc7 {[%clk 0:02:48.5]} 6. d3 {[%clk 0:02:57]} 6... e5 {[%clk 0:02:47.1]} 7.
b3 {[%clk 0:02:55.2]} 7... Bd6 {[%clk 0:02:41.2]} 8. Bb2 {[%clk 0:02:55]} 8...
Ne7 {[%clk 0:02:37.1]} 9. Nbd2 {[%clk 0:02:55.9]} 9... O-O {[%clk 0:02:18.6]}
10. Nc4 {[%clk 0:02:54.4]} 10... f6 {[%clk 0:02:18.4]} 11. a4 {[%clk 0:02:53.9]}
11... a5 {[%clk 0:02:13.6]} 12. h3 {[%clk 0:02:38.2]} 12... Be6 {[%clk
0:02:12.9]} 13. Nh2 {[%clk 0:02:32.8]} 13... Rad8 {[%clk 0:02:09]} 14. Ng4
{[%clk 0:02:32.6]} 14... Ng6 {[%clk 0:02:03.9]} 15. Nge3 {[%clk 0:02:29.9]}
15... Nf4 {[%clk 0:01:59.6]} 16. Nf5 {[%clk 0:02:29.1]} 16... Bxf5 {[%clk
0:01:59.2]} 17. exf5 {[%clk 0:02:29.3]} 17... e4 {[%clk 0:01:44.5]} 18. dxe4
{[%clk 0:02:13.3]} 18... Nxh3+ {[%clk 0:01:43.9]} 19. Kh1 {[%clk 0:02:13.7]}
19... Bg3 {[%clk 0:00:44.3]} 20. Qf3 {[%clk 0:02:08]} 20... Nxf2+ {[%clk
0:00:44]} 21. Rxf2 {[%clk 0:02:08.3]} 21... Bxf2 {[%clk 0:00:44.9]} 22. Qxf2
{[%clk 0:02:08.8]} 22... Qf7 {[%clk 0:00:43.8]} 23. g4 {[%clk 0:02:02.6]} 23...
b5 {[%clk 0:00:43.5]} 24. Nxa5 {[%clk 0:02:00.7]} 24... Rd6 {[%clk 0:00:24.7]}
25. Re1 {[%clk 0:01:40.6]} 25... Rfd8 {[%clk 0:00:20.6]} 26. Qxc5 {[%clk
0:01:28.3]} 26... Rd2 {[%clk 0:00:16.5]} 27. Nxc6 {[%clk 0:01:28.2]} 27... Re8
{[%clk 0:00:08.5]} 28. Bc1 {[%clk 0:01:27.2]} 28... Rd7 {[%clk 0:00:04.7]} 29.
axb5 {[%clk 0:01:26.9]} 29... h5 {[%clk 0:00:03.3]} 30. g5 {[%clk 0:01:26.5]}
30... fxg5 {[%clk 0:00:03.5]} 31. Bxg5 {[%clk 0:01:25.9]} 31... g6 {[%clk
0:00:03.8]} 32. Ne5 {[%clk 0:01:24.6]} 1-0

[Event "*** Titled Tuesday Blitz"]
[Site "Chess.com"]
[Date "2021.04.06"]
[Round "1"]
[White "m_ezat"]
[Black "CzechmVIII"]
[Result "1-0"]
[WhiteElo "2546"]
[BlackElo "2219"]
[TimeControl "180+1"]
[EndTime "10:05:56 PDT"]
[Termination "m_ezat won by checkmate"]

1. d4 {[%clk 0:02:58.2]} 1... Nf6 {[%clk 0:03:00.1]} 2. c4 {[%clk 0:02:58.3]}
2... c5 {[%clk 0:03:00.6]} 3. d5 {[%clk 0:02:58.1]} 3... b5 {[%clk 0:03:01.2]}
4. cxb5 {[%clk 0:02:57]} 4... a6 {[%clk 0:03:01.3]} 5. Nc3 {[%clk 0:02:56.2]}
5... axb5 {[%clk 0:02:59.8]} 6. e4 {[%clk 0:02:56.7]} 6... b4 {[%clk 0:02:59.4]}
7. Nb5 {[%clk 0:02:57.1]} 7... d6 {[%clk 0:02:59.6]} 8. Bf4 {[%clk 0:02:56.4]}
8... g5 {[%clk 0:02:59.6]} 9. Bxg5 {[%clk 0:02:57]} 9... Nxe4 {[%clk 0:02:59.7]}
10. Bf4 {[%clk 0:02:57.7]} 10... Nf6 {[%clk 0:02:59.9]} 11. Bd3 {[%clk
0:02:56.5]} 11... Bg7 {[%clk 0:02:58.6]} 12. Nf3 {[%clk 0:02:56.1]} 12... O-O
{[%clk 0:02:57.3]} 13. O-O {[%clk 0:02:56.5]} 13... Ra5 {[%clk 0:02:39.6]} 14.
a4 {[%clk 0:02:53.8]} 14... bxa3 {[%clk 0:02:37.4]} 15. Rxa3 {[%clk 0:02:50.4]}
15... Ba6 {[%clk 0:02:23.8]} 16. Rxa5 {[%clk 0:01:59]} 16... Qxa5 {[%clk
0:02:23.4]} 17. Nc3 {[%clk 0:01:58]} 17... Bxd3 {[%clk 0:02:13.6]} 18. Qxd3
{[%clk 0:01:57.4]} 18... Na6 {[%clk 0:02:12.8]} 19. Nh4 {[%clk 0:01:56.4]} 19...
Nb4 {[%clk 0:02:06.6]} 20. Qf3 {[%clk 0:01:56.8]} 20... Qa8 {[%clk 0:01:02.9]}
21. Nf5 {[%clk 0:01:30.7]} 21... Nbxd5 {[%clk 0:00:38.6]} 22. Nxd5 {[%clk
0:01:27.6]} 22... e5 {[%clk 0:00:04.5]} 23. Nxf6+ {[%clk 0:01:18.7]} 23... Bxf6
{[%clk 0:00:03.4]} 24. Qg4+ {[%clk 0:01:10.6]} 24... Kh8 {[%clk 0:00:03.1]} 25.
Bg5 {[%clk 0:01:11.2]} 25... Bxg5 {[%clk 0:00:01.6]} 26. Qxg5 {[%clk 0:01:10.8]}
26... Rg8 {[%clk 0:00:02]} 27. Qf6+ {[%clk 0:01:11]} 27... Rg7 {[%clk
0:00:01.6]} 28. Qxg7# {[%clk 0:01:11.6]} 1-0

[Event "*** Titled Tuesday Blitz"]
[Site "Chess.com"]
[Date "2021.04.06"]
[Round "1"]
[White "jefferyx"]
[Black "SharapovEvgeny"]
[Result "1-0"]
[WhiteElo "2966"]
[BlackElo "2472"]
[TimeControl "180+1"]
[EndTime "10:05:57 PDT"]
[Termination "jefferyx won by resignation"]

1. e4 {[%clk 0:01:13.6]} 1... c5 {[%clk 0:02:57.4]} 2. Nf3 {[%clk 0:01:13.3]}
2... d6 {[%clk 0:02:57.1]} 3. Bb5+ {[%clk 0:01:13.1]} 3... Bd7 {[%clk
0:02:55.7]} 4. c4 {[%clk 0:01:13]} 4... Bxb5 {[%clk 0:02:51.7]} 5. cxb5 {[%clk
0:01:13.9]} 5... e5 {[%clk 0:02:50.9]} 6. Nc3 {[%clk 0:01:13.7]} 6... Nf6 {[%clk
0:02:50.1]} 7. O-O {[%clk 0:01:14.2]} 7... Be7 {[%clk 0:02:49.6]} 8. d3 {[%clk
0:01:14.6]} 8... O-O {[%clk 0:02:48.8]} 9. Nd2 {[%clk 0:01:14.9]} 9... Nbd7
{[%clk 0:02:47.7]} 10. Nc4 {[%clk 0:01:15.2]} 10... h6 {[%clk 0:02:39.9]} 11. a4
{[%clk 0:01:14.2]} 11... Nb6 {[%clk 0:02:29.9]} 12. a5 {[%clk 0:01:13.3]} 12...
Nxc4 {[%clk 0:02:29.2]} 13. dxc4 {[%clk 0:01:14.2]} 13... Qd7 {[%clk 0:02:26.1]}
14. Qd3 {[%clk 0:01:13.5]} 14... Qe6 {[%clk 0:02:25.5]} 15. Rd1 {[%clk 0:01:13]}
15... Rad8 {[%clk 0:02:23.9]} 16. b3 {[%clk 0:01:09.7]} 16... Rfe8 {[%clk
0:02:21.3]} 17. Ba3 {[%clk 0:01:09.5]} 17... Bf8 {[%clk 0:02:17.1]} 18. Ra2
{[%clk 0:01:09.6]} 18... Rc8 {[%clk 0:02:12.7]} 19. Rad2 {[%clk 0:01:08.9]}
19... g6 {[%clk 0:02:11.3]} 20. Qf3 {[%clk 0:01:07.6]} 20... Kh7 {[%clk
0:02:05.2]} 21. Nd5 {[%clk 0:01:07.1]} 21... Nxd5 {[%clk 0:02:04.6]} 22. Rxd5
{[%clk 0:01:08]} 22... Be7 {[%clk 0:02:02.3]} 23. Bc1 {[%clk 0:01:06.3]} 23...
f5 {[%clk 0:02:00.1]} 24. h4 {[%clk 0:01:05.6]} 24... f4 {[%clk 0:01:54.3]} 25.
Bb2 {[%clk 0:00:49.2]} 25... Bxh4 {[%clk 0:01:47.3]} 26. Rxd6 {[%clk 0:00:48.3]}
26... Qf7 {[%clk 0:01:44.3]} 27. Qh3 {[%clk 0:00:46.8]} 27... Be7 {[%clk
0:01:37.1]} 28. Rd7 {[%clk 0:00:47.7]} 28... Rcd8 {[%clk 0:01:33.5]} 29. Bxe5
{[%clk 0:00:45.5]} 29... Rxd7 {[%clk 0:01:29.7]} 30. Rxd7 {[%clk 0:00:46.4]}
30... Rd8 {[%clk 0:01:27.1]} 31. Rxb7 {[%clk 0:00:41.5]} 31... Rd1+ {[%clk
0:01:22.1]} 32. Kh2 {[%clk 0:00:41.5]} 32... f3 {[%clk 0:01:01.9]} 33. Qxf3
{[%clk 0:00:39.9]} 33... Qe6 {[%clk 0:00:58.9]} 34. Qf6 {[%clk 0:00:39.3]} 1-0